[Event "Chhattisgarh Masters GM 2022"]
[Site "Chhattisgarh"]
[Date "2022.09.21"]
[Round "3.1"]
[White "Pantsulaia, Levan"]
[Black "Nitish Belurkar"]
[Result "1-0"]
[ECO "A14"]
[WhiteElo "2596"]
[BlackElo "2419"]
[Annotator "TA"]
[PlyCount "73"]
[EventDate "2022.09.19"]
[EventCountry "IND"]
[SourceTitle "playchess.com"]
[Source "ChessBase"]
[SourceQuality "1"]
[TimeControl "5400+30"]

{[%evp 12,73,11,7,15,10,14,0,0,-4,-9,-17,0,0,0,0,0,0,43,51,78,54,48,51,273,272,251,250,321,344,331,325,302,308,625,554,610,602,639,627,621,599,792,777,1167,1126,1104,688,773,776,714,727,984,943,981,983,1450,1318,1427,1549,1549,1289,1554,1379]} 1. Nf3 {[%emt 0:00:07]} Nf6 {[%emt 0:00:12]} 2. g3 {[%emt 0:00:07]} d5 {[%emt 0:00:16]} 3. Bg2 {[%emt 0:00:07]} e6 {[%emt 0:00:04]} 4. O-O {[%emt 0:00:07]} Be7 {[%emt 0:00:05]} 5. c4 {[%emt 0:00:10]} O-O {[%emt 0:00:10]} 6. b3 {[%emt 0:00:14]} d4 {[%emt 0:00:07]} 7. e3 {[%emt 0:00:20]} c5 {[%emt 0:00:04] A14: English Opening: 1...e6 with b3 by White.} 8. exd4 {[%emt 0:00:06]} cxd4 {[%emt 0:00:06]} 9. d3 {[%emt 0:00:03]} Nc6 {[%emt 0:00:14] The position is equal.} 10. Na3 {[%emt 0:00:07]} e5 {[%emt 0:12:56] was the old line (10...Re8).} 11. Nc2 {[%emt 0:00:40]} Nd7 {[%emt 0:03:27]} 12. Re1 {[%emt 0:05:16][%cal Ob3b4]} a5 {[%emt 0:02:41] Inhibits b4.} 13. a3 {[%emt 0:00:33][%cal Ba2a3,Ba3b4,Bb4b5][%mdl 32]} f6 {[%emt 0:04:42]} 14. Rb1 {[%emt 0:02:34]} Nc5 {[%emt 0:04:15]} 15. b4 {[%emt 0:01:38]} axb4 {[%emt 0:00:19]} 16. axb4 {[%emt 0:00:06]} Na4 {[%emt 0:00:14] Hoping for ...Nc3.} 17. Bd2 {[%emt 0:00:17]} Bf5 $2 {[%emt 0:00:41] Loses the game.} ({Better is} 17... Bg4 $14) 18. b5 $18 {[%emt 0:02:42]} Nb8 {[%emt 0:02:47] [#]} 19. Nfxd4 $1 {[%emt 0:06:51][%mdl 512]} exd4 {[%emt 0:12:30]} (19... Bc8 20. Nb3) 20. Bxb7 {[%emt 0:00:23]} Ra7 {[%emt 0:00:31]} 21. Bd5+ {[%emt 0:00:07]} Kh8 {[%emt 0:00:03]} 22. Nxd4 {[%emt 0:00:09][%cal Bc2d4,Bd4f5,Bf5e3][%mdl 32] [#]} ({Not} 22. Qf3 Bc8 $16) 22... Qc8 $146 {[%emt 0:01:35]} (22... Bd7 23. Ra1 Bc5) ({Predecessor:} 22... Bxd3 23. Ne6 Qc8 24. Ra1 Nb2 25. Qg4 Bc5 26. Rxa7 Bg6 27. Rc7 Nd3 28. Rxc8 Bxf2+ 29. Kf1 Rxc8 30. Nf4 {1-0 (30) Nguyen,P (2403)-Kantor,G (2512) Roquetas de Mar 2019}) 23. b6 {[%emt 0:05:01] White is clearly winning.} Nxb6 {[%emt 0:02:21]} 24. Rxb6 {[%emt 0:03:38]} Bc5 {[%emt 0:00:26] [#]} 25. Rxb8 {[%emt 0:00:15]} Qxb8 {[%emt 0:00:04]} 26. Nxf5 {[%emt 0:00:09]} Ra2 {[%emt 0:00:04]} 27. d4 {[%emt 0:01:03]} Rxd2 {[%emt 0:00:08]} 28. Qxd2 {[%emt 0:00:09]} Bb4 {[%emt 0:00:03]} 29. Qd1 {[%emt 0:00:24]} Bxe1 {[%emt 0:00:03]} 30. Qxe1 {[%emt 0:00:08] And now Qe7 would win.} Re8 {[%emt 0:00:02] Inhibits Qe7.} 31. Ne3 {[%emt 0:00:19]} Qb2 {[%emt 0:00:27]} 32. Qd1 {[%emt 0:00:19]} g6 {[%emt 0:01:08]} 33. c5 {[%emt 0:00:35][%cal Bc4c5,Bc5c6][%mdl 32]} Qc3 {[%emt 0:00:14]} 34. c6 {[%emt 0:02:56]} Kg7 {[%emt 0:01:13]} 35. Kg2 {[%emt 0:02:08]} f5 {[%emt 0:53:48] Inhibits Qg4.} 36. Bf3 {[%emt 0:02:30]} Qb2 {[%emt 0:00:00]} 37. Qd3 {[%emt 0:00:40] Weighted Error Value: White=0.35/Black=0.66} 1-0

[Event "Chhattisgarh Masters GM 2022"]
[Site "Chhattisgarh"]
[Date "2022.09.21"]
[Round "3.1"]
[White "Rajesh, V A V"]
[Black "Arhan Chethan Anand"]
[Result "1-0"]
[ECO "D36"]
[WhiteElo "2331"]
[BlackElo "2155"]
[Annotator "TA"]
[PlyCount "161"]
[EventDate "2022.09.19"]
[EventCountry "IND"]
[SourceTitle "playchess.com"]
[Source "ChessBase"]
[SourceQuality "1"]
[TimeControl "5400+30"]

{[%evp 22,161,0,-7,-5,0,0,0,0,-19,-14,-14,0,-31,-15,-8,-16,-33,-24,-33,-41,-49,0,-30,0,-16,0,0,0,0,21,17,10,8,5,15,27,21,44,28,29,0,52,0,50,0,19,16,30,29,48,22,80,34,49,30,59,50,89,89,95,54,65,74,93,53,51,57,64,25,137,129,209,216,278,170,148,114,115,109,145,157,175,181,191,191,192,192,214,210,243,241,439,439,511,495,616,616,644,638,623,591,590,581,714,610,706,683,711,706,695,682,668,660,725,700,898,886,963,954,1150,1151,1110,1117,1063,1025,1246,1179,1225,1184,1718,1393,1690,1236,1137,0,1447,1245,29981,29982,29986,29987]} 1. d4 {[%emt 0:00:05]} d5 {[%emt 0:00:05]} 2. c4 {[%emt 0:00:03]} e6 {[%emt 0:00:04]} 3. Nc3 {[%emt 0:00:05]} Be7 {[%emt 0:00:04]} 4. Nf3 {[%emt 0:00:45]} Nf6 {[%emt 0:00:07]} 5. cxd5 {[%emt 0:00:04]} exd5 {[%emt 0:00:07]} 6. Bg5 {[%emt 0:00:05]} c6 {[%emt 0:00:17]} 7. Qc2 {[%emt 0:00:29]} g6 {[%emt 0:00:13]} 8. e3 {[%emt 0:02:47]} Bf5 {[%emt 0:00:27]} 9. Bd3 {[%emt 0:00:23]} Bxd3 {[%emt 0:00:08]} 10. Qxd3 {[%emt 0:00:04]} Nbd7 {[%emt 0:03:47]} 11. O-O {[%emt 0:00:30]} O-O {[%emt 0:00:16]} 12. Nd2 {[%emt 0:06:30]} Re8 {[%emt 0:03:56] D36: Queen's Gambit Declined: Exchange Variation: Main line (5 Bg5 c6 6 Qc2).} 13. Rfe1 {[%emt 0:04:37]} Nh5 {[%emt 0:14:03]} 14. Bxe7 {[%emt 0:02:47]} Qxe7 {[%emt 0:00:12] The position is equal.} 15. f3 {[%emt 0:00:30]} Rad8 {[%emt 0:03:23] [#]} 16. Rac1 $146 {[%emt 0:04:36]} ({Predecessor:} 16. Na4 Qb4 17. b3 Qa3 18. Rac1 Re6 19. g3 Ng7 20. Rc2 h5 21. Kf2 Nf5 22. Nf1 {0-1 (57) Hug,M (2200)-Thesing,M (2370) Zug 1989}) 16... Nf8 {[%emt 0:16:36]} 17. Na4 {[%emt 0:02:38]} Qf6 {[%emt 0:04:40]} 18. Nc5 {[%emt 0:04:41]} Re7 {[%emt 0:02:45]} 19. Qa3 {[%emt 0:01:41]} Rde8 {[%emt 0:06:45]} 20. Nf1 {[%emt 0:01:50]} ({Don't go for} 20. Qxa7 $2 Rxe3 21. Rxe3 Qxd4 $19) 20... a6 {[%emt 0:09:28]} 21. Qb4 {[%emt 0:05:15]} Kh8 {[%emt 0:07:13]} (21... Ne6 $15 {was preferrable.}) 22. Nd3 {[%emt 0:20:29]} ({Of course not} 22. Nxb7 Rb8 23. Qd6 Rexb7 $17) 22... Rd8 {[%emt 0:09:28]} 23. Ne5 {[%emt 0:03:07]} Qd6 {[%emt 0:00:10]} 24. Qxd6 {[%emt 0:00:34]} Rxd6 {[%emt 0:00:30]} 25. Kf2 {[%emt 0:00:09]} Nd7 {[%emt 0:00:37]} 26. Nd3 {[%emt 0:00:05]} Ng7 {[%emt 0:01:03]} 27. Rc3 {[%emt 0:02:55]} Ne6 {[%emt 0:00:22]} 28. Nd2 {[%emt 0:01:03][%cal Bf1d2,Bd2b3,Bb3a5][%mdl 32]} Kg7 {[%emt 0:01:48]} 29. Nb3 {[%emt 0:00:53]} Kf8 {[%emt 0:01:59]} 30. Na5 {[%emt 0:03:25]} Nd8 {[%emt 0:00:12]} 31. Rec1 {[%emt 0:01:10]} Ke8 {[%emt 0:00:42]} (31... g5 $11) 32. Rd1 {[%emt 0:04:23]} (32. g4 $14) 32... Kf8 {[%emt 0:02:34]} (32... g5 $11) 33. Nf4 {[%emt 0:06:10]} (33. g4 $14) 33... Kg8 {[%emt 0:02:51]} 34. Rdc1 {[%emt 0:00:47]} Kf8 {[%emt 0:00:22]} 35. g4 {[%emt 0:03:07]} Kg8 {[%emt 0:00:49]} 36. h4 {[%emt 0:00:48]} Kh8 {[%emt 0:00:30] [#]} (36... Nf6 $11) 37. b4 {[%emt 0:07:10]} (37. Nxb7 $1 $16 Nxb7 38. Rxc6) 37... Nb6 {[%emt 0:04:54]} 38. Nd3 {[%emt 0:01:10]} Na8 {[%emt 0:00:32]} 39. a4 {[%emt 0:04:02][%cal Ob4b5]} Nc7 {[%emt 0:00:05]} 40. Nb3 {[%emt 0:04:27]} Kg8 {[%emt 0:03:58]} 41. g5 {[%emt 0:02:07]} f6 {[%emt 0:00:00]} 42. Nbc5 {[%emt 0:00:00]} Rf7 {[%emt 0:00:00]} 43. gxf6 {[%emt 0:00:00]} Rdxf6 {[%emt 0:00:00]} 44. Ne5 {[%emt 0:00:00]} Re7 {[%emt 0:00:00]} 45. Rg1 {[%emt 0:00:00]} Ne8 {[%emt 0:00:00]} (45... Rf5 $11) 46. h5 $1 $36 {[%emt 0:00:00][%mdl 2048] White is really pushing. White is much more active.} Nd6 {[%emt 0:00:00] Inhibits b5.} (46... Kg7 $16 47. Ncd7 Rfe6) 47. hxg6 $18 {[%emt 0:00:00]} hxg6 {[%emt 0:00:00]} 48. Nxg6 {[%emt 0:00:00]} Rg7 {[%emt 0:00:00]} 49. Nf4 {[%emt 0:00:00]} Rxg1 {[%emt 0:00:00]} 50. Kxg1 {[%emt 0:00:00]} Nf5 {[%emt 0:00:00]} 51. Nd7 {[%emt 0:00:00]} Rh6 {[%emt 0:00:00]} 52. Ne5 {[%emt 0:00:00]} Nf7 {[%emt 0:02:43]} 53. Ng4 {[%emt 0:00:00]} Rd6 {[%emt 0:01:34]} 54. Nd3 {[%emt 0:00:00]} Rg6 {[%emt 0:00:49]} 55. Kf2 {[%emt 0:00:00]} N5d6 {[%emt 0:00:17][%cal Og6g4]} 56. Rc1 {[%emt 0:00:00]} Kf8 $2 {[%emt 0:01:10]} (56... Rg5 57. Nc5 Rg6) 57. Nf4 {[%emt 0:00:00]} Rg8 {[%emt 0:00:10]} 58. Nf6 {[%emt 0:00:00]} Rg5 {[%emt 0:01:45]} 59. Nh7+ {[%emt 0:00:00]} Ke7 {[%emt 0:00:02]} 60. Nxg5 {[%emt 0:00:00]} Nxg5 {[%emt 0:00:02][%mdl 4096] Endgame KRN-KNN} 61. Ng6+ {[%emt 0:00:00]} Kf6 {[%emt 0:00:17]} 62. Ne5 {[%emt 0:00:00]} Nf5 {[%emt 0:00:25]} 63. Rh1 {[%emt 0:00:21]} Kg7 {[%emt 0:00:45]} 64. Nd7 {[%emt 0:00:29]} Ne6 {[%emt 0:00:14]} 65. Nc5 {[%emt 0:00:15]} Nd8 {[%emt 0:00:01]} 66. Rh5 {[%emt 0:00:44]} Nd6 {[%emt 0:00:01]} 67. Ke2 {[%emt 0:00:17]} Nc4 {[%emt 0:00:08]} 68. a5 {[%emt 0:00:23]} Nd6 {[%emt 0:00:09]} 69. e4 {[%emt 0:00:14]} dxe4 {[%emt 0:00:03]} 70. fxe4 {[%emt 0:00:05]} Kg8 {[%emt 0:00:29]} 71. Kd3 {[%emt 0:00:09]} Kg7 {[%emt 0:00:05]} 72. Rh2 {[%emt 0:00:42]} Ne8 {[%emt 0:00:19]} 73. Rf2 {[%emt 0:00:22]} Nf6 {[%emt 0:00:05]} 74. Rf1 {[%emt 0:00:40]} Ne8 {[%emt 0:00:08]} 75. d5 {[%emt 0:01:20] [#] Threatens to win with Ne6+.} cxd5 {[%emt 0:00:17]} 76. exd5 {[%emt 0:00:04][%cal Be4d5,Bd5e6][%mdl 32] Black must now prevent Ne6+.} Nc7 {[%emt 0:00:05] Inhibits Ne6+.} 77. Kd4 {[%emt 0:00:22]} Nb5+ {[%emt 0:00:01]} 78. Kd3 {[%emt 0:00:25] Hoping for Ne6+.} Nc7 $1 {[%emt 0:00:26] Inhibits Ne6+.} 79. Ke4 {[%emt 0:00:07]} Nb5 {[%emt 0:00:01]} 80. Ne6+ {[%emt 0:00:06]} Nxe6 {[%emt 0:00:06]} 81. dxe6 {[%emt 0:00:06] Weighted Error Value: White=0.14 (very precise) /Black=0.30} 1-0

[Event "Chhattisgarh Masters GM 2022"]
[Site "Chhattisgarh"]
[Date "2022.09.21"]
[Round "3.2"]
[White "Savchenko, Boris"]
[Black "Nitin, S.."]
[Result "1-0"]
[ECO "E73"]
[WhiteElo "2547"]
[BlackElo "2416"]
[Annotator "TA"]
[PlyCount "63"]
[EventDate "2022.09.19"]
[EventCountry "IND"]
[SourceTitle "playchess.com"]
[Source "ChessBase"]
[SourceQuality "1"]
[TimeControl "5400+30"]

{[%evp 12,63,60,38,32,41,35,38,34,6,33,-7,0,-13,66,0,0,-4,60,-97,-70,-124,66,-63,-19,-29,-17,-104,0,0,0,0,0,0,194,193,193,209,217,214,231,218,230,217,230,228,278,272,388,385,389,376,419,396]} 1. d4 {[%emt 0:13:36]} Nf6 {[%emt 0:00:35]} 2. c4 {[%emt 0:00:17]} g6 {[%emt 0:00:12]} 3. Nc3 {[%emt 0:00:14]} Bg7 {[%emt 0:00:10]} 4. e4 {[%emt 0:00:05]} d6 {[%emt 0:00:11]} 5. Be2 {[%emt 0:00:05]} O-O {[%emt 0:00:27]} 6. Be3 {[%emt 0:00:04]} Nc6 {[%emt 0:00:57]} 7. d5 {[%emt 0:00:23]} Ne5 {[%emt 0:02:10] E73: King's Indian: Averbakh Variation without 6...c5.} 8. f4 {[%emt 0:00:15]} Neg4 {[%emt 0:00:15]} 9. Bd2 {[%emt 0:04:46]} Nh6 {[%emt 0:00:24] White is slightly better.} 10. h3 {[%emt 0:12:41] Threatening g4.} e6 $1 {[%emt 0:00:24]} 11. g4 {[%emt 0:03:53] And now g5 would win.} exd5 {[%emt 0:00:58]} 12. cxd5 {[%emt 0:00:06] [#]} b5 $146 {[%emt 0:08:01]} (12... Re8 $11) ({Predecessor:} 12... Re8 13. Qc2 c6 14. O-O-O b5 15. dxc6 b4 16. e5 dxe5 17. Nb5 Qa5 18. a3 Nd5 {1-0 (33) Handler,L (2422)-Papakonstantinou,D (2275) Graz 2020}) 13. a3 {[%emt 0:34:40]} ({White should try} 13. Bxb5 $14 Rb8 14. a4) 13... Re8 $11 {[%emt 0:14:30]} 14. Qc2 {[%emt 0:00:12]} (14. Bxb5 Nxe4 15. Kf1 Bd7 16. Bxd7 Qxd7 $17) 14... Rb8 {[%emt 0:35:01]} (14... Qe7 15. g5 $14) (14... Bd7 $1 $11) 15. g5 $2 {[%emt 0:06:01] [#]} (15. Bxb5 $2 Nxe4 $1 16. Bxe8 Qh4+ 17. Kd1 Bxg4+ 18. hxg4 Nf2+ 19. Kc1 Qxh1 $19) (15. Bf3 $14 {stays ahead.}) 15... Nxe4 $1 $17 {[%emt 0:00:45]} 16. Nxe4 {[%emt 0:00:27]} Nf5 {[%emt 0:06:28]} (16... Bf5 $17 17. Qb3 (17. gxh6 Rxe4 18. Qc1 Qh4+ 19. Kd1 Qxh6 $17) 17... Bxe4 18. gxh6 Qh4+ 19. Kf1 (19. Kd1 $2 Bxh1 20. hxg7 Qf2 $19) 19... Bxh1 20. hxg7 Re4) 17. Bc3 {[%emt 0:13:19]} (17. Nf3 $1 $14) 17... Ne3 {[%emt 0:03:38][%csl LRc2,LRd5]} 18. Qd3 {[%emt 0:01:07] Threatens to win with Bf6.} Ng2+ {[%emt 0:03:17]} 19. Kd2 {[%emt 0:02:49] [#]} (19. Kf2 $11 Nxf4 20. Qf3 Bxc3 21. Qxf4 Bd4+ 22. Kg2) 19... Nxf4 {[%emt 0:03:18]} (19... Bf5 $1 $17 20. Nf6+ (20. Bxg7 Rxe4 21. Bf6 Qe8 $15) 20... Bxf6 21. Bxf6 Bxd3 22. Bxd8 Bxe2 23. Bxc7 Rbc8 24. Nxe2 Rxc7) 20. Bxg7 $11 {[%emt 0:02:48]} Nxd3 {[%emt 0:01:22]} 21. Bf6 $36 {[%emt 0:00:16][%mdl 2048] Black is under pressure.} Qd7 {[%emt 0:01:12]} 22. Bg4 {[%emt 0:00:42] Prevents Qf5. Chess con chili. A strong pair of Bishops.} Qf5 {[%emt 0:00:33]} 23. Bxf5 $18 {[%emt 0:00:27]} Bxf5 {[%emt 0:00:10]} 24. Ng3 {[%emt 0:00:29]} Nc5 {[%emt 0:00:36] Strongly threatening ...Nb3+.} 25. Nxf5 {[%emt 0:00:55]} gxf5 {[%emt 0:00:18]} (25... Nb3+ $2 26. Kc3 Nxa1 27. Ne7+ Rxe7 28. Bxe7) 26. Kc2 {[%emt 0:01:27] Prevents Nb3.} Re4 {[%emt 0:04:26]} 27. Rf1 {[%emt 0:00:33] Against Rf4} b4 {[%emt 0:00:35] [#]} 28. axb4 $1 {[%emt 0:00:16]} (28. Rxf5 Rc4+ 29. Kd2 bxa3 30. bxa3 Rb1 $11) 28... Rexb4 {[%emt 0:00:12]} 29. Bc3 {[%emt 0:00:37]} ({Don't take} 29. Rxf5 $6 Rc4+ 30. Kb1 Nd3 $18) 29... R4b5 {[%emt 0:00:28]} (29... Rc4 $142 30. Ne2 (30. Rxf5 Na4 $18) 30... Na4) 30. Ne2 {[%emt 0:01:00] aiming for Nd4. White is winning.} Na4 {[%emt 0:02:08]} 31. Rxf5 {[%emt 0:00:36]} Nxb2 {[%emt 0:00:44]} 32. Nd4 {[%emt 0:00:42] Weighted Error Value: White=0.29 (precise) /Black=0.36} 1-0

[Event "Chhattisgarh Masters GM 2022"]
[Site "Chhattisgarh"]
[Date "2022.09.21"]
[Round "3.2"]
[White "Shyam, Sundar M."]
[Black "Aaryan Varshney"]
[Result "1/2-1/2"]
[ECO "C28"]
[WhiteElo "2526"]
[BlackElo "2263"]
[Annotator "TA"]
[PlyCount "87"]
[EventDate "2022.09.19"]
[EventCountry "IND"]
[SourceTitle "playchess.com"]
[Source "ChessBase"]
[SourceQuality "1"]
[TimeControl "5400+30"]

{[%evp 10,87,11,-32,0,-5,0,8,0,0,1,0,49,31,43,29,47,43,28,26,44,45,48,48,52,49,60,62,69,16,33,18,17,10,16,0,0,0,2,-43,-38,-35,-40,-25,-25,-32,-25,-28,-36,-35,-16,-24,-23,-31,0,-36,0,-56,-26,-61,-8,-8,0,-45,-36,-31,-19,-24,-32,-60,0,-8,-8,-8,0,0,0,-8,0,0]} 1. e4 {[%emt 0:00:14]} e5 {[%emt 0:00:14]} 2. Bc4 {[%emt 0:00:04]} Nf6 {[%emt 0:00:25]} 3. d3 {[%emt 0:00:05]} Nc6 {[%emt 0:00:17]} 4. Nc3 {[%emt 0:00:13]} Bb4 {[%emt 0:04:44]} 5. Bg5 {[%emt 0:00:08]} h6 {[%emt 0:00:54]} 6. Bh4 {[%emt 0:00:06]} (6. Bxf6 $5 Bxc3+ 7. bxc3 Qxf6 8. Qf3 $11) 6... Na5 {[%emt 0:08:54] C28: Vienna Game: 2...Nf6 3 Bc4 Nc6.} (6... g5 $5 7. Bg3 $8 d5 8. exd5 Nxd5 $11) 7. Nge2 {[%emt 0:07:05]} Nxc4 {[%emt 0:01:14]} 8. dxc4 {[%emt 0:00:46]} Be7 {[%emt 0:04:31]} 9. Qd3 {[%emt 0:06:33]} d6 {[%emt 0:02:02]} 10. O-O-O {[%emt 0:14:05][%cal Oc4c5]} Be6 {[%emt 0:09:07] [#]} (10... O-O $11 {might be stronger.}) 11. c5 $146 {[%emt 0:12:20]} ({Predecessor:} 11. Kb1 Nxe4 12. Bxe7 Nxc3+ 13. Nxc3 Qxe7 14. Nd5 Bxd5 15. Qxd5 O-O-O 16. Rd3 Qe6 17. Qa5 {0-1 (38) Vasiliev,A-Belyaev,O (2120) Zhukovsky 2008}) 11... O-O {[%emt 0:09:39]} 12. cxd6 {[%emt 0:00:11]} Bxd6 {[%emt 0:06:41]} 13. Nb5 {[%emt 0:08:35][%cal Bc3b5,Bb5d6,Bd6f5][%mdl 32]} Be7 {[%emt 0:09:17][%cal Bd6e7,Be7d8,Bd8b6][%mdl 32]} (13... Bxa2 $2 14. b3 $16) 14. Qxd8 {[%emt 0:09:40]} Bxd8 {[%emt 0:05:36]} 15. Bxf6 {[%emt 0:00:07]} gxf6 {[%emt 0:00:10]} 16. Ng3 {[%emt 0:00:06]} Kh7 {[%emt 0:02:42]} 17. Nf5 {[%emt 0:02:07]} c6 {[%emt 0:09:50]} 18. Nbd6 {[%emt 0:04:43]} Rb8 {[%emt 0:08:35]} 19. Ne3 {[%emt 0:11:40] White has more active pieces. The black rooks are badly placed. Pair of Knights!} ({Better is} 19. Rd3 $14) 19... Bb6 $11 {[%emt 0:01:20]} 20. Ndf5 {[%emt 0:00:05]} Rbd8 {[%emt 0:01:52]} 21. h4 {[%emt 0:13:28]} h5 {[%emt 0:02:37]} 22. f3 {[%emt 0:00:01]} Rg8 {[%emt 0:02:00]} (22... Bxa2 $2 23. b3 $18) 23. Rxd8 {[%emt 0:00:10]} Bxd8 {[%emt 0:01:56]} 24. g4 {[%emt 0:07:01]} Bxf5 {[%emt 0:01:09]} (24... hxg4 {is interesting.} 25. Nxg4 Bxf5 26. exf5 e4) 25. Nxf5 {[%emt 0:00:09]} hxg4 {[%emt 0:00:10]} 26. fxg4 {[%emt 0:00:32]} Rxg4 $15 {[%emt 0:00:07][%mdl 4096] Endgame KRB-KRN} 27. Re1 {[%emt 0:00:05]} Kg6 {[%emt 0:02:02]} 28. a4 {[%emt 0:00:33]} Bb6 {[%emt 0:02:14]} 29. Re2 {[%emt 0:00:29] Against Bf2} Bc5 {[%emt 0:00:49]} 30. c3 {[%emt 0:00:07]} a5 {[%emt 0:00:28]} 31. Kc2 {[%emt 0:00:03]} Kh5 {[%emt 0:00:51]} 32. Kd3 {[%emt 0:00:47]} b6 {[%emt 0:01:49]} 33. Kc4 {[%emt 0:00:32]} (33. Rc2 $11) 33... Rg1 {[%emt 0:00:44]} 34. Rd2 {[%emt 0:01:40]} Re1 {[%emt 0:01:09]} (34... Kg4 $15 35. Rh2 Kf3) 35. Kd3 $11 {[%emt 0:00:14]} Rg1 {[%emt 0:00:27]} 36. Rc2 {[%emt 0:02:11][%cal Ob2b4]} Rd1+ {[%emt 0:01:04]} 37. Ke2 {[%emt 0:00:40]} Rb1 {[%emt 0:00:45] Hoping for ...Kg4.} 38. Kf3 {[%emt 0:00:50]} Rf1+ {[%emt 0:00:30]} 39. Kg3 {[%emt 0:00:24]} Rg1+ {[%emt 0:00:28]} (39... Rf4 $15 40. Kh3 Rf3+ 41. Ng3+ Kg6) 40. Kh2 {[%emt 0:01:04][%cal Ob2b4] [#] b4! is the strong threat. The position is equal.} Re1 {[%emt 0:00:35]} 41. Rg2 {[%emt 0:00:28]} Be3 {[%emt 0:00:00] White must now prevent ...Bf4+.} 42. Kg3 {[%emt 0:00:00]} Bc5 {[%emt 0:00:00]} 43. Kh2 {[%emt 0:00:00]} Be3 {[%emt 0:00:00] [#] Strongly threatening ...Bf4+.} 44. Kg3 {[%emt 0:00:00] Weighted Error Value: White=0.13 (very precise) /Black=0.12 (very precise)} 1/2-1/2

[Event "Chhattisgarh Masters GM 2022"]
[Site "Chhattisgarh"]
[Date "2022.09.21"]
[Round "3.2"]
[White "Pawar, Harshit"]
[Black "Avinash Ramesh"]
[Result "1/2-1/2"]
[ECO "C29"]
[WhiteElo "2111"]
[BlackElo "2328"]
[Annotator "TA"]
[PlyCount "69"]
[EventDate "2022.09.19"]
[EventCountry "IND"]
[SourceTitle "playchess.com"]
[Source "ChessBase"]
[SourceQuality "1"]
[TimeControl "5400+30"]

{[%evp 13,69,-11,-11,-17,0,0,-37,-45,-29,-58,-62,-51,-42,-44,-61,-62,-37,-61,0,-19,0,-132,-123,-129,-112,-110,-58,-127,-129,-135,-135,-114,-39,-121,0,0,0,0,0,0,0,0,0,0,0,0,0,0,21,21,21,21,21,21,151,146,145,122]} 1. e4 {[%emt 0:00:14]} e5 {[%emt 0:00:45]} 2. Nc3 {[%emt 0:00:04]} Nf6 {[%emt 0:00:07]} 3. f4 {[%emt 0:00:37]} d5 {[%emt 0:00:30][%cal Bd7d5,Bd5d4][%mdl 32]} 4. fxe5 {[%emt 0:00:03]} Nxe4 {[%emt 0:00:08]} 5. Qf3 {[%emt 0:00:05]} f5 {[%emt 0:00:05]} 6. d3 {[%emt 0:00:10]} Nxc3 {[%emt 0:00:07]} 7. bxc3 {[%emt 0:00:06]} d4 $1 {[%emt 0:00:09]} 8. Qg3 {[%emt 0:00:20] C29: Vienna Game: 2...Nf6 3 f4.} Nc6 {[%emt 0:00:50]} 9. Be2 $1 {[%emt 0:00:47]} Be6 {[%emt 0:01:39]} ({Don't take} 9... dxc3 10. Bh5+ Kd7 11. Bf7 $16) 10. Bf3 {[%emt 0:10:11] Black is slightly better. 10.c4 is the fancy move.} Qd7 {[%emt 0:04:07] [#]} ({Don't play} 10... dxc3 11. Bxc6+ bxc6 12. Ne2 $11) 11. Bxc6 $146 {[%emt 0:16:28]} ({Predecessor:} 11. Ne2 Bc5 12. Bxc6 Qxc6 13. O-O dxc3+ 14. Be3 O-O-O 15. Qf2 Bxe3 16. Qxe3 Kb8 17. a4 {½-½ (23) Wang,K (2402)-Gauri,S (2353) Charlotte 2021}) 11... Qxc6 {[%emt 0:00:12]} 12. c4 {[%emt 0:00:05]} Bb4+ {[%emt 0:01:49]} 13. Bd2 {[%emt 0:00:20]} Bxd2+ {[%emt 0:00:11]} 14. Kxd2 {[%emt 0:00:04]} O-O-O {[%emt 0:17:22]} 15. Ne2 {[%emt 0:08:14]} g5 {[%emt 0:06:33]} ({Better is} 15... g6 $15) 16. Rab1 {[%emt 0:13:43]} Qa6 {[%emt 0:02:31]} 17. Rb5 {[%emt 0:00:58] Prevents Qa5+.} (17. Qxg5 $11 Rhg8 18. Qf6) 17... c6 $17 {[%emt 0:00:35]} 18. Rb2 {[%emt 0:01:29]} Qa5+ {[%emt 0:00:07]} 19. Kc1 {[%emt 0:02:50]} Rhg8 {[%emt 0:00:21]} (19... h6 $1 $17 {aiming for ...Rhe8.} 20. Qe1 Qxe1+ 21. Rxe1 f4) 20. Kb1 {[%emt 0:02:00]} ({White should play} 20. Qe1 $15 Qc5 21. h4) 20... f4 {[%emt 0:00:18]} 21. Qe1 {[%emt 0:00:09]} Qxe5 {[%emt 0:02:06]} 22. Nxd4 {[%emt 0:02:50][%cal Be2d4,Bd4f5,Bf5e7][%mdl 32]} Qxe1+ {[%emt 0:01:39]} ({Stronger than} 22... Qxd4 23. Qxe6+ Qd7 24. Qh6 $15) 23. Rxe1 {[%emt 0:00:03] [#]} Bxc4 {[%emt 0:01:21]} (23... Bg4 $1 $17 24. Re4 Rge8 25. Rxe8 Rxe8) 24. Nf5 $11 {[%emt 0:01:32] And now Ne7+ would win.} Rgf8 $1 {[%emt 0:19:16]} 25. Ne7+ {[%emt 0:00:03]} Kc7 {[%emt 0:00:07] White must now prevent ...Bf7.} 26. dxc4 {[%emt 0:00:21]} g4 {[%emt 0:10:46]} 27. c3 {[%emt 0:03:22]} f3 {[%emt 0:00:41]} 28. gxf3 {[%emt 0:00:58]} gxf3 {[%emt 0:00:01]} 29. Rf2 {[%emt 0:00:21]} Rd7 {[%emt 0:04:38]} 30. Re3 {[%emt 0:03:53]} Kd8 {[%emt 0:00:15]} 31. Nxc6+ {[%emt 0:00:15]} bxc6 {[%emt 0:00:02]} 32. Rexf3 {[%emt 0:00:11]} Rxf3 {[%emt 0:05:24]} 33. Rxf3 {[%emt 0:00:03] Threatening Rh3.} Rg7 {[%emt 0:00:23] [#]} (33... Rd2 $11) 34. Rh3 $1 $16 {[%emt 0:00:32]} Kc7 {[%emt 0:00:18]} 35. Kc2 {[%emt 0:00:39] Weighted Error Value: White=0.16 (very precise) /Black=0.21 (precise)} 1/2-1/2